fUSD/lending_fUSD_20260106
["ID","MTS","AMOUNT","RATE_DAILY","PERIOD"]
[400520238,1767694251991,-342.99163257,0.00032876,120]
[400520239,1767694252000,-369.29897118,0.00032876,120]
[400520240,1767694252010,-500.0,0.00032876,120]
[400520241,1767694252019,-493.64907582,0.00032876,120]
[400520242,1767694252028,-395.00471561,0.00032876,120]
[400520243,1767694252040,-500.0,0.00032876,120]
[400520244,1767694252049,-554.67812125,0.00032876,120]
[400520245,1767694252058,-467.39551828,0.00032876,120]
[400520246,1767694252069,-176.28103152,0.00032876,120]
[400520247,1767694252078,-420.74026748,0.00032876,120]
[400520248,1767694252088,-500.0,0.00032876,120]
[400520249,1767694252099,-500.0,0.00032876,120]
[400520250,1767694252112,-500.0,0.00032876,120]
[400520251,1767694252122,-500.0,0.00032876,120]
[400520252,1767694252131,-500.0,0.00032876,120]
[400520253,1767694252141,-337.72539467,0.00032876,120]
[400520254,1767694252150,-224.22031021,0.00032876,120]
[400520255,1767694252159,-500.0,0.00032876,120]
[400520256,1767694252168,-500.0,0.00032876,120]
[400520257,1767694252177,-500.0,0.00032876,120]
[400520258,1767694252188,-500.0,0.00032876,120]
[400520259,1767694252199,-494.54289782,0.00032876,120]
[400520260,1767694252208,-500.0,0.00032876,120]
[400520261,1767694252218,-346.66520872,0.00032876,120]
[400520262,1767694252227,-500.0,0.00032876,120]
[400520263,1767694252239,-500.0,0.00032876,120]
[400520264,1767694252248,-405.61023422,0.00032876,120]
[400520265,1767694252257,-344.07827269,0.00032876,120]
[400520266,1767694252267,-500.32069525,0.00032876,120]
[400520267,1767694252277,-3080.24,0.00032876,14]
[400520268,1767694252286,-500.0,0.00032876,120]
[400520269,1767694252295,-3080.24,0.00032876,14]
[400520270,1767694252305,-500.0,0.00032876,120]
[400520271,1767694252314,-3080.24,0.00032876,14]
[400520272,1767694252324,-404.12281176,0.00032876,120]
[400520273,1767694252333,-3080.24,0.00032876,14]
[400520274,1767694252343,-168.6904132,0.00032876,120]
[400520275,1767694252352,-500.0,0.00032876,120]
[400520276,1767694252362,-455.74394664,0.00032876,120]
[400520277,1767694252371,-159.29060322,0.00032876,120]
[400520278,1767694252381,-243.04971037,0.00032876,120]
[400520279,1767694252390,-500.0,0.00032876,120]
[400520280,1767694252399,-500.0,0.00032876,120]
[400520281,1767694252409,-637.56754693,0.00032876,120]
[400520282,1767694252418,-221.00280983,0.00032876,120]
[400520283,1767694252427,-304.26091961,0.00032876,120]
[400520284,1767694252437,-190.14612611,0.00032876,120]
[400520285,1767694252447,-500.0,0.00032876,120]
[400520286,1767694252456,-250.08724715,0.00032876,120]
[400520287,1767694252466,-311.58594277,0.00032876,120]
[400520288,1767694252476,-213.08182989,0.00032876,120]
[400520289,1767694252485,-500.0,0.00032876,120]
[400520290,1767694252495,-500.0,0.00032876,120]
[400520291,1767694252504,-500.0,0.00032876,120]
[400520292,1767694252514,-500.0,0.00032876,120]
[400520293,1767694252524,-500.0,0.00032876,120]
[400520294,1767694252534,-327.68087476,0.00032876,120]
[400520295,1767694252543,-446.38038912,0.00032876,120]
[400520296,1767694252553,-472.90033333,0.00032876,120]
[400520297,1767694252562,-445.85130633,0.00032876,120]
[400520298,1767694252572,-390.37372357,0.00032876,120]
[400520299,1767694252582,-414.28696377,0.00032876,120]
[400520300,1767694252591,-284.1760495,0.00032876,120]
[400520301,1767694252601,-500.0,0.00032876,120]
[400520302,1767694252611,-500.0,0.00032876,120]
[400520303,1767694252621,-319.61849985,0.00032876,120]
[400520304,1767694252631,-382.5380418,0.00032876,120]
[400520305,1767694252642,-345.80554037,0.00032876,120]
[400520306,1767694252652,-500.0,0.00032876,120]
[400520307,1767694252662,-500.0,0.00032876,120]
[400520308,1767694252672,-500.0,0.00032876,120]
[400520309,1767694252682,-212.57914123,0.00032876,120]
[400520310,1767694252692,-278.26568765,0.00032876,120]
[400520311,1767694252703,-500.0,0.00032876,120]
[400520312,1767694252713,-425.81811966,0.00032876,120]
[400520313,1767694252723,-362.00993536,0.00032876,120]
[400520314,1767694252732,-500.0,0.00032876,120]
[400520315,1767694252743,-158.30157116,0.00032876,120]
[400520316,1767694252752,-263.59129624,0.00032876,120]
[400520317,1767694252763,-500.0,0.00032876,120]
[400520318,1767694252773,-181.18272262,0.00032876,120]
[400520319,1767694252784,-500.0,0.00032876,120]
[400520320,1767694252794,-500.0,0.00032876,120]
[400520321,1767694252803,-500.0,0.00032876,120]
[400520322,1767694252816,-500.0,0.00032876,120]
[400520323,1767694252827,-360.95144735,0.00032876,120]
[400520324,1767694252836,-470.19327168,0.00032876,120]
[400520325,1767694252846,-275.03767094,0.00032876,120]
[400520326,1767694252857,-165.98390251,0.00032876,120]
[400520327,1767694252867,-189.96591433,0.00032876,120]
[400520328,1767694252877,-531.06330453,0.00032876,120]
[400520329,1767694252888,-335.95141045,0.00032876,120]
[400520330,1767694252898,-500.0,0.00032876,120]
[400520331,1767694252908,-500.0,0.00032876,120]
[400520332,1767694252918,-536.36700928,0.00032876,120]
[400520333,1767694252928,-510.29314256,0.00032876,120]
[400520334,1767694252938,-457.35363305,0.00032876,120]
[400520335,1767694252948,-170.2102246,0.00032876,120]
[400520336,1767694252958,-473.23273582,0.00032876,120]
[400520337,1767694252967,-500.0,0.00032876,120]
[400520338,1767694252977,-585.65148527,0.00032876,120]
[400520339,1767694252987,-174.34410025,0.00032876,120]
[400520340,1767694252998,-491.97693419,0.00032876,120]
[400520341,1767694253008,-500.0,0.00032876,120]
[400520342,1767694253018,-500.0,0.00032876,120]
[400520343,1767694253028,-500.0,0.00032876,120]
[400520344,1767694253039,-500.0,0.00032876,120]
[400520345,1767694253049,-480.35126979,0.00032876,120]
[400520346,1767694253059,-358.46203706,0.00032876,120]
[400520347,1767694253068,-230.48545574,0.00032876,120]
[400520348,1767694253079,-297.52850442,0.00032876,120]
[400520349,1767694253089,-538.23,0.00032876,120]
[400520350,1767694253100,-405.27592816,0.00032876,120]
[400520351,1767694253110,-538.23,0.00032876,120]
[400520352,1767694253120,-538.23,0.00032876,120]
[400520353,1767694253129,-538.23,0.00032876,120]
[400520354,1767694253139,-500.0,0.00032876,120]
[400520355,1767694253149,-538.23,0.00032876,120]
[400520356,1767694253159,-242.12711664,0.00032876,120]
[400520357,1767694253169,-538.23,0.00032876,120]
[400520358,1767694253179,-248.57197637,0.00032876,120]
[400520359,1767694253189,-538.23,0.00032876,120]
[400520360,1767694253203,-538.23,0.00032876,120]
[400520361,1767694253213,-538.23,0.00032876,120]
[400520362,1767694253223,-538.23,0.00032876,120]
[400520363,1767694253235,-538.23,0.00032876,120]
[400520364,1767694253246,-500.0,0.00032876,120]
[400520365,1767694253256,-224.43820489,0.00032876,120]
[400520366,1767694253266,-500.0,0.00032876,120]
[400520367,1767694253278,-308.76520573,0.00032876,120]
[400520368,1767694253287,-500.0,0.00032876,120]
[400520369,1767694253297,-571.51845251,0.00032876,120]
[400520370,1767694253308,-500.0,0.00032876,120]
[400520371,1767694253317,-336.78545834,0.00032876,120]
[400520372,1767694253328,-563.15893475,0.00032876,120]
[400520373,1767694253339,-500.0,0.00032876,120]
[400520374,1767694253349,-500.0,0.00032876,120]
[400520375,1767694253359,-305.39728443,0.00032876,120]
[400520376,1767694253369,-185.79898068,0.00032876,120]
[400520377,1767694253380,-472.73661805,0.00032876,120]
[400520378,1767694253390,-500.0,0.00032876,120]
[400520379,1767694253400,-351.92,0.00032876,120]
[400520380,1767694253410,-529.40760303,0.00032876,120]
[400520381,1767694253420,-500.0,0.00032876,120]
[400520382,1767694253430,-365.55955331,0.00032876,120]
[400520383,1767694253440,-182.68164523,0.00032876,120]
[400520384,1767694253450,-561.85302485,0.00032876,120]
[400520385,1767694253460,-500.0,0.00032876,120]
[400520386,1767694253470,-500.0,0.00032876,120]
[400520387,1767694253480,-238.09676661,0.00032876,120]
[400520388,1767694253490,-207.90133602,0.00032876,120]
[400520389,1767694253501,-500.0,0.00032876,120]
[400520390,1767694253511,-314.880223,0.00032876,120]
[400520391,1767694253521,-500.0,0.00032876,120]
[400520392,1767694253532,-579.18404447,0.00032876,120]
[400520393,1767694253542,-500.0,0.00032876,120]
[400520394,1767694253553,-353.2253488,0.00032876,120]
[400520395,1767694253566,-213.75074394,0.00032876,120]
[400520396,1767694253576,-500.0,0.00032876,120]
[400520397,1767694253587,-353.10981744,0.00032876,120]
[400520398,1767694253596,-436.7876197,0.00032876,120]
[400520399,1767694253607,-226.09490284,0.00032876,120]
[400520400,1767694253621,-150.0,0.00032876,2]
[400520401,1767694253638,-500.0,0.00032876,120]
[400520402,1767694253656,-293.99047346,0.00032876,120]
[400520403,1767694253666,-164.25536077,0.00032876,120]
[400520404,1767694253676,-500.0,0.00032876,120]
[400520405,1767694253686,-162.57773665,0.00032876,120]
[400520406,1767694253696,-525.71929825,0.00032876,120]
[400520407,1767694253706,-296.33739002,0.00032876,120]
[400520408,1767694253717,-500.0,0.00032876,120]
[400520409,1767694253727,-500.0,0.00032876,120]
[400520410,1767694253737,-166.96903943,0.00032876,120]
[400520411,1767694253747,-423.55645368,0.00032876,120]
[400520412,1767694253757,-435.94362388,0.00032876,120]
[400520413,1767694253767,-437.98141381,0.00032876,120]
[400520414,1767694253777,-300.0,0.00032876,120]
[400520415,1767694253787,-410.35204534,0.00032876,120]
[400520416,1767694253798,-311.62164346,0.00032876,120]
[400520417,1767694253808,-500.0,0.00032876,120]
[400520418,1767694253819,-563.25502962,0.00032876,120]
[400520419,1767694253831,-500.0,0.00032876,120]
[400520420,1767694253842,-482.98130021,0.00032876,120]
[400520421,1767694253855,-178.33212834,0.00032876,120]
[400520422,1767694253865,-431.52331914,0.00032876,120]
[400520423,1767694253876,-500.0,0.00032876,120]
[400520424,1767694253887,-427.32096748,0.00032876,120]
[400520425,1767694253898,-252.47284394,0.00032876,120]
[400520426,1767694253908,-500.0,0.00032876,120]
[400520427,1767694253919,-397.07859348,0.00032876,120]
[400520428,1767694253929,-590.74298307,0.00032876,120]
[400520429,1767694253940,-500.0,0.00032876,120]
[400520430,1767694253951,-344.85376742,0.00032876,120]
[400520431,1767694253962,-500.0,0.00032876,120]
[400520432,1767694253973,-207.51903709,0.00032876,120]
[400520433,1767694253983,-309.93793593,0.00032876,120]
[400520434,1767694253993,-264.40772987,0.00032876,120]
[400520435,1767694254003,-499.91999685,0.00032876,120]
[400520436,1767694254013,-500.0,0.00032876,120]
[400520437,1767694254023,-208.00989123,0.00032876,120]
[400520438,1767694254035,-500.0,0.00032876,120]
[400520439,1767694254045,-188.68050803,0.00032876,120]
[400520440,1767694254056,-441.27309692,0.00032876,120]
[400520441,1767694254067,-259.03790611,0.00032876,120]
[400520442,1767694254079,-249.0544274,0.00032876,120]
[400520443,1767694254091,-500.0,0.00032876,120]
[400520444,1767694254102,-405.36964158,0.00032876,120]
[400520445,1767694254112,-261.94286924,0.00032876,120]
[400520446,1767694254123,-471.55578412,0.00032876,120]
[400520447,1767694254133,-379.48405483,0.00032876,60]
[400520448,1767694254143,-500.0,0.00032876,120]
[400520449,1767694254154,-175.46111216,0.00032876,120]
[400520450,1767694254165,-509.27284801,0.00032876,120]
[400520451,1767694254175,-500.0,0.00032876,120]
[400520452,1767694254185,-500.0,0.00032876,120]
[400520453,1767694254201,-500.0,0.00032876,120]
[400520454,1767694254211,-500.0,0.00032876,120]
[400520455,1767694254221,-475.29230091,0.00032876,120]
[400520456,1767694254231,-301.31136574,0.00032876,120]
[400520457,1767694254242,-500.0,0.00032876,120]
[400520458,1767694254252,-355.73142683,0.00032876,120]
[400520459,1767694254264,-298.84986893,0.00032876,120]
[400520460,1767694254274,-500.0,0.00032876,120]
[400520461,1767694254284,-500.0,0.00032876,120]
[400520462,1767694254294,-500.0,0.00032876,120]
[400520463,1767694254304,-528.54614043,0.00032876,120]
[400520464,1767694254314,-500.0,0.00032876,120]
[400520465,1767694254323,-480.86347515,0.00032876,120]
[400520466,1767694254333,-286.53197892,0.00032876,120]
[400520467,1767694254343,-500.0,0.00032876,120]
[400520468,1767694254353,-500.0,0.00032876,120]
[400520469,1767694254363,-177.08701639,0.00032876,120]
[400520470,1767694254374,-500.0,0.00032876,120]
[400520471,1767694254383,-445.98513174,0.00032876,120]
[400520472,1767694254395,-445.31425895,0.00032876,120]
[400520473,1767694254404,-648.32691622,0.00032876,120]
[400520474,1767694254414,-500.0,0.00032876,120]
[400520475,1767694254424,-341.01284775,0.00032876,120]
[400520476,1767694254434,-339.90239205,0.00032876,120]
[400520477,1767694254444,-500.0,0.00032876,120]
[400520478,1767694254454,-500.0,0.00032876,120]
[400520479,1767694254463,-500.0,0.00032876,120]
[400520480,1767694254473,-500.0,0.00032876,120]
[400520481,1767694254482,-225.57959577,0.00032876,120]
[400520482,1767694254493,-294.41723102,0.00032876,120]
[400520483,1767694254502,-480.31054098,0.00032876,120]
[400520484,1767694254512,-317.33427623,0.00032876,120]
[400520485,1767694254522,-500.0,0.00032876,120]
[400520486,1767694254532,-500.0,0.00032876,120]
[400520487,1767694254541,-295.34445626,0.00032876,120]
[400520488,1767694254551,-500.0,0.00032876,120]
[400520489,1767694254560,-500.0,0.00032876,120]
[400520490,1767694254570,-355.42860562,0.00032876,120]
[400520491,1767694254579,-500.0,0.00032876,120]
[400520492,1767694254589,-336.48772585,0.00032876,120]
[400520493,1767694254598,-500.0,0.00032876,120]
[400520494,1767694254608,-484.91364967,0.00032876,120]
[400520495,1767694254618,-522.5227719,0.00032876,120]
[400520496,1767694254627,-411.9599159,0.00032876,120]
[400520497,1767694254638,-500.0,0.00032876,120]
[400520498,1767694254648,-500.0,0.00032876,120]
[400520499,1767694254869,-250.71698991,0.00032876,120]
[400520500,1767694254886,-500.0,0.00032876,120]
[400520501,1767694254896,-494.66847355,0.00032876,120]
[400520502,1767694254906,-186.59336239,0.00032876,120]
[400520503,1767694254915,-320.88532578,0.00032876,120]
[400520504,1767694254925,-500.0,0.00032876,120]
[400520505,1767694254935,-403.34988411,0.00032876,120]
[400520506,1767694254944,-605.50973567,0.00032876,120]
[400520507,1767694254954,-357.00337,0.00032876,120]
[400520508,1767694254964,-269.42236054,0.00032876,120]
[400520509,1767694254973,-214.19309188,0.00032876,120]
[400520510,1767694254983,-513.45069126,0.00032876,120]
[400520511,1767694254993,-500.0,0.00032876,120]
[400520512,1767694255003,-462.05540219,0.00032876,120]
[400520513,1767694255012,-498.89528543,0.00032876,120]
[400520514,1767694255022,-300.34693102,0.00032876,120]
[400520515,1767694255031,-500.0,0.00032876,120]
[400520516,1767694255042,-500.0,0.00032876,120]
[400520517,1767694255051,-500.0,0.00032876,120]
[400520518,1767694255060,-167.83932439,0.00032876,120]
[400520519,1767694255069,-237.29804145,0.00032876,120]
[400520520,1767694255079,-500.0,0.00032876,120]
[400520521,1767694255088,-500.0,0.00032876,120]
[400520522,1767694255097,-172.21359151,0.00032876,120]
[400520523,1767694255106,-500.0,0.00032876,120]
[400520524,1767694255116,-402.71922337,0.00032876,120]
[400520525,1767694255125,-299.27312973,0.00032876,120]
[400520526,1767694255134,-263.77410786,0.00032876,120]
[400520527,1767694255144,-500.0,0.00032876,120]
[400520528,1767694255153,-470.37565459,0.00032876,120]
[400520529,1767694255162,-209.97149082,0.00032876,120]
[400520530,1767694255171,-351.8211318,0.00032876,120]
[400520531,1767694255181,-500.0,0.00032876,120]
[400520532,1767694255191,-516.4791237,0.00032876,120]
[400520533,1767694255204,-348.83816946,0.00032876,120]
[400520534,1767694255213,-360.18603018,0.00032876,120]
[400520535,1767694255222,-457.74123321,0.00032876,120]
[400520536,1767694255232,-318.27745614,0.00032876,120]
[400520537,1767694255242,-358.11395733,0.00032876,120]
[400520538,1767694255251,-235.60829848,0.00032876,120]
[400520539,1767694255262,-458.59527937,0.00032876,120]
[400520540,1767694255272,-299.38113062,0.00032876,120]
[400520541,1767694255281,-186.2874258,0.00032876,120]
[400520542,1767694255291,-248.69870836,0.00032876,120]
[400520543,1767694255300,-407.94549573,0.00032876,120]
[400520544,1767694255309,-475.64168612,0.00032876,120]
[400520545,1767694255320,-423.77259758,0.00032876,120]
[400520546,1767694255330,-500.0,0.00032876,120]
[400520547,1767694255339,-500.0,0.00032876,120]
[400520548,1767694255349,-500.0,0.00032876,120]
[400520549,1767694255359,-301.02985609,0.00032876,120]
[400520550,1767694255368,-365.38979024,0.00032876,120]
[400520551,1767694255378,-228.77656415,0.00032876,120]
[400520552,1767694255388,-500.0,0.00032876,120]
[400520553,1767694255397,-263.19810392,0.00032876,120]
[400520554,1767694255407,-500.0,0.00032876,120]
[400520555,1767694255416,-197.25874079,0.00032876,120]
[400520556,1767694255426,-460.33628037,0.00032876,120]
[400520557,1767694255435,-500.0,0.00032876,120]
[400520558,1767694255445,-327.44322468,0.00032876,120]
[400520559,1767694255455,-305.72458666,0.00032876,120]
[400520560,1767694255464,-500.0,0.00032876,120]
[400520561,1767694255473,-297.4403996,0.00032876,120]
[400520562,1767694255482,-500.0,0.00032876,120]
[400520563,1767694255492,-337.74963649,0.00032876,120]
[400520564,1767694255501,-600.65832898,0.00032876,120]
[400520565,1767694255511,-399.05910079,0.00032876,120]
[400520566,1767694255520,-230.81140298,0.00032876,120]
[400520567,1767694255530,-382.22805633,0.00032876,120]
[400520568,1767694255539,-222.38549189,0.00032876,120]
[400520569,1767694255549,-500.0,0.00032876,120]
[400520570,1767694255559,-500.0,0.00032876,120]
[400520571,1767694255568,-189.185195,0.00032876,120]
[400520572,1767694255578,-366.95421135,0.00032876,120]
[400520573,1767694255587,-436.07454223,0.00032876,120]
[400520574,1767694255597,-506.54883863,0.00032876,120]
[400520575,1767694255607,-319.63088256,0.00032876,120]
[400520576,1767694255617,-445.53357113,0.00032876,120]
[400520577,1767694255626,-164.00051788,0.00032876,120]
[400520578,1767694255636,-451.57229464,0.00032876,120]
[400520579,1767694255646,-375.50634941,0.00032876,120]
[400520580,1767694255656,-500.0,0.00032876,120]
[400520581,1767694255666,-500.0,0.00032876,120]
[400520582,1767694255676,-500.0,0.00032876,120]
[400520583,1767694255686,-380.58476258,0.00032876,120]
[400520584,1767694255695,-500.0,0.00032876,120]
[400520585,1767694255705,-178.73713197,0.00032876,120]
[400520586,1767694255715,-317.93804472,0.00032876,120]
[400520587,1767694255725,-426.54798009,0.00032876,120]
[400520588,1767694255735,-461.55593225,0.00032876,120]
[400520589,1767694255744,-500.0,0.00032876,120]
[400520590,1767694255755,-500.0,0.00032876,120]
[400520591,1767694255764,-224.86374318,0.00032876,120]
[400520592,1767694255773,-220.01867285,0.00032876,120]
[400520593,1767694255783,-421.39171451,0.00032876,120]
[400520594,1767694255793,-335.92947878,0.00032876,120]
[400520595,1767694255803,-500.0,0.00032876,120]
[400520596,1767694255812,-245.88388512,0.00032876,120]
[400520597,1767694255822,-262.04689783,0.00032876,120]
[400520598,1767694255831,-235.85795115,0.00032876,120]
[400520599,1767694255842,-193.67510823,0.00032876,120]
[400520600,1767694255851,-213.48602741,0.00032876,120]
[400520601,1767694255861,-640.56007798,0.00032876,120]
[400520602,1767694255870,-500.0,0.00032876,120]
[400520603,1767694255879,-235.33937721,0.00032876,120]
[400520604,1767694255890,-500.0,0.00032876,120]
[400520605,1767694255900,-282.9683305,0.00032876,120]
[400520606,1767694255910,-500.0,0.00032876,120]
[400520607,1767694255920,-416.3285487,0.00032876,120]
[400520608,1767694255930,-500.0,0.00032876,120]
[400520609,1767694255939,-500.0,0.00032876,120]
[400520610,1767694255950,-345.2648309,0.00032876,120]
[400520611,1767694255960,-346.54531826,0.00032876,120]
[400520612,1767694255969,-500.0,0.00032876,120]
[400520613,1767694255979,-500.0,0.00032876,120]
[400520614,1767694255990,-320.64322624,0.00032876,120]
[400520615,1767694255999,-500.0,0.00032876,120]
[400520616,1767694256009,-500.0,0.00032876,120]
[400520617,1767694256020,-347.34504876,0.00032876,120]
[400520618,1767694256031,-297.09177072,0.00032876,120]
[400520619,1767694256040,-220.72974392,0.00032876,120]
[400520620,1767694256050,-365.04241269,0.00032876,120]
[400520621,1767694256059,-548.95473497,0.00032876,120]
[400520622,1767694256070,-500.0,0.00032876,120]
[400520623,1767694256079,-500.0,0.00032876,120]
[400520624,1767694256090,-220.23757326,0.00032876,120]
[400520625,1767694256100,-633.83321948,0.00032876,120]
[400520626,1767694256109,-500.0,0.00032876,120]
[400520627,1767694256119,-500.0,0.00032876,120]
[400520628,1767694256128,-179.40122446,0.00032876,120]
[400520629,1767694256137,-246.08432339,0.00032876,120]
[400520630,1767694256146,-500.0,0.00032876,120]
[400520631,1767694256155,-500.0,0.00032876,120]
[400520632,1767694256164,-500.0,0.00032876,120]
[400520633,1767694256173,-500.0,0.00032876,120]
[400520634,1767694256182,-474.59752327,0.00032876,120]
[400520635,1767694256195,-500.0,0.00032876,120]
[400520636,1767694256205,-571.51249695,0.00032876,120]
[400520637,1767694256215,-298.24075559,0.00032876,120]
[400520638,1767694256224,-410.50617668,0.00032876,2]
[400520639,1767694256236,-500.0,0.00032876,120]
[400520640,1767694256246,-620.70454581,0.00032876,120]
[400520641,1767694256255,-445.27965354,0.00032876,120]
[400520642,1767694256265,-571.52002342,0.00032876,120]
[400520643,1767694256275,-500.0,0.00032876,120]
[400520644,1767694256284,-276.37780263,0.00032876,120]
[400520645,1767694256294,-272.05291081,0.00032876,120]
[400520646,1767694256303,-465.10827915,0.00032876,120]
[400520647,1767694256312,-500.0,0.00032876,120]
[400520648,1767694256321,-279.65443235,0.00032876,120]
[400520649,1767694256330,-500.0,0.00032876,120]
[400520650,1767694256340,-500.0,0.00032876,120]
[400520651,1767694256349,-500.0,0.00032876,120]
[400520652,1767694256359,-346.90859883,0.00032876,120]
[400520653,1767694256368,-500.0,0.00032876,120]
[400520654,1767694256377,-397.19316522,0.00032876,120]
[400520655,1767694256386,-176.83912209,0.00032876,120]
[400520656,1767694256395,-564.74684536,0.00032876,120]
[400520657,1767694256405,-500.0,0.00032876,120]
[400520658,1767694256414,-500.0,0.00032876,120]
[400520659,1767694256424,-500.0,0.00032876,120]
[400520660,1767694256433,-500.0,0.00032876,120]
[400520661,1767694256442,-501.58769138,0.00032876,120]
[400520662,1767694256452,-286.31277283,0.00032876,120]
[400520663,1767694256461,-214.64531975,0.00032876,120]
[400520664,1767694256471,-500.0,0.00032876,120]
[400520665,1767694256480,-500.0,0.00032876,120]
[400520666,1767694256489,-170.2459535,0.00032876,120]
[400520667,1767694256498,-500.0,0.00032876,120]
[400520668,1767694256508,-395.50733345,0.00032876,120]
[400520669,1767694256517,-310.43949523,0.00032876,120]
[400520670,1767694256526,-542.67540637,0.00032876,120]
[400520671,1767694256535,-500.0,0.00032876,120]
[400520672,1767694256545,-307.50094123,0.00032876,120]
[400520673,1767694256554,-300.0,0.00032876,120]
[400520674,1767694256564,-300.09989552,0.00032876,120]
[400520675,1767694256573,-500.0,0.00032876,120]
[400520676,1767694256582,-500.0,0.00032876,120]
[400520677,1767694256592,-500.0,0.00032876,120]
[400520678,1767694256601,-500.0,0.00032876,120]
[400520679,1767694256610,-293.41601599,0.00032876,120]
[400520680,1767694256620,-326.31847153,0.00032876,120]
[400520681,1767694256630,-500.0,0.00032876,120]
[400520682,1767694256639,-500.0,0.00032876,120]
[400520683,1767694256649,-423.77509798,0.00032876,120]
[400520684,1767694256659,-509.37141871,0.00032876,120]
[400520685,1767694256668,-410.02577305,0.00032876,120]
[400520686,1767694256678,-500.0,0.00032876,120]
[400520687,1767694256687,-500.0,0.00032876,120]
[400520688,1767694256697,-500.0,0.00032876,120]
[400520689,1767694256707,-200.56835475,0.00032876,120]
[400520690,1767694256716,-506.35010696,0.00032876,120]
[400520691,1767694256725,-183.97009244,0.00032876,120]
[400520692,1767694256735,-542.14492627,0.00032876,120]
[400520693,1767694256744,-477.66860339,0.00032876,120]
[400520694,1767694256753,-404.12624611,0.00032876,120]
[400520695,1767694256762,-299.56737658,0.00032876,120]
[400520696,1767694256772,-410.6280657,0.00032876,120]
[400520697,1767694256781,-188.84693698,0.00032876,120]
[400520698,1767694256791,-395.7261618,0.00032876,120]
[400520699,1767694256800,-500.0,0.00032876,120]
[400520700,1767694256809,-292.59957104,0.00032876,120]
[400520701,1767694256818,-500.0,0.00032876,120]
[400520702,1767694256828,-500.0,0.00032876,120]
[400520703,1767694256838,-229.89253512,0.00032876,120]
[400520704,1767694256847,-380.52733574,0.00032876,120]
[400520705,1767694256856,-500.0,0.00032876,120]
[400520706,1767694256866,-357.3422032,0.00032876,120]
[400520707,1767694256875,-500.0,0.00032876,120]
[400520708,1767694256884,-500.0,0.00032876,120]
[400520709,1767694256893,-222.68164427,0.00032876,120]
[400520710,1767694256902,-412.27447791,0.00032876,120]
[400520711,1767694256912,-180.60428819,0.00032876,120]
[400520712,1767694256922,-500.0,0.00032876,120]
[400520713,1767694256931,-637.79663735,0.00032876,120]
[400520714,1767694256941,-192.70631379,0.00032876,120]
[400520715,1767694256951,-500.0,0.00032876,120]
[400520716,1767694256960,-310.02185016,0.00032876,120]
[400520717,1767694256970,-500.0,0.00032876,120]
[400520718,1767694256979,-281.11346018,0.00032876,120]
[400520719,1767694256989,-266.03862254,0.00032876,120]
[400520720,1767694256998,-258.98347189,0.00032877,120]
[400520721,1767694257007,-502.0,0.00032877,2]
[400520722,1767694257017,-863.38,0.000329,14]
[400520723,1767694257026,-887.6,0.000329,14]
[400520724,1767694257035,-150.0,0.00033,14]
[400520725,1767694257044,-386.87667747,0.00033007,2]
[400520726,1767694257054,-301.13,0.00033165,2]
[400520727,1767694257064,-10124.50883993,0.00033181,2]
[400520728,1767694257073,-2000.0,0.000332,2]
[400520729,1767694257082,-1000.0,0.000332,7]
[400520730,1767694257091,-201.93286099,0.00033249,40]
[400520731,1767694257100,-151.0,0.00033249,40]
[400520732,1767694257110,-250.0,0.00033249,40]
[400520733,1767694257119,-250.0,0.00033249,40]
[400520734,1767694257128,-553.64373807,0.00033249,40]
[400520735,1767694257137,-250.0,0.00033249,40]
[400520736,1767694257189,-180.15816449,0.00033249,40]
[400520737,1767694257200,-200.0,0.00033286,2]